[Event "FIDE World Rapid Chess Championship 2021"]
[White "Sarana, Alexey"]
[Black "Parligras, Mircea-Emilian"]
[WhiteFideId "24133795"]
[BlackFideId "1204297"]
[WhiteElo "2680"]
[BlackElo "2550"]
[Result "1/2-1/2"]
[Round "08"]
[TimeControl "900+10"]
[Date "2021.12.27"]
[WhiteClock "0:00:50"]
[BlackClock "0:00:43"]

1. d4 {[%clk 0:15:00]}  Nf6 {[%clk 0:15:00]} 2. c4 {[%clk 0:15:00]}  e6 {[%clk 0:15:00]} 3. Nc3 {[%clk 0:15:00]}  Bb4 {[%clk 0:15:00]} 4. e3 {[%clk 0:15:00]}  O-O {[%clk 0:15:00]} 5. Bd3 {[%clk 0:15:00]}  d5 {[%clk 0:15:00]} 6. a3 {[%clk 0:16:29]}  Bxc3+ {[%clk 0:14:54]} 7. bxc3 {[%clk 0:16:29]}  dxc4 {[%clk 0:14:54]} 8. Bxc4 {[%clk 0:16:29]}  c5 {[%clk 0:14:54]} 9. Ne2 {[%clk 0:16:29]}  Qc7 {[%clk 0:14:54]} 10. Bd3 {[%clk 0:16:29]}  b6 {[%clk 0:14:54]} 11. e4 {[%clk 0:16:29]}  Ba6 {[%clk 0:14:54]} 12. Bxa6 {[%clk 0:16:29]}  Nxa6 {[%clk 0:14:54]} 13. Qd3 {[%clk 0:16:29]}  Nb8 {[%clk 0:14:54]} 14. O-O {[%clk 0:16:29]}  Nbd7 {[%clk 0:14:54]} 15. Bg5 {[%clk 0:16:29]}  cxd4 {[%clk 0:14:54]} 16. cxd4 {[%clk 0:16:29]}  Rac8 {[%clk 0:14:54]} 17. f3 {[%clk 0:16:29]}  h6 {[%clk 0:14:18]} 18. Bh4 {[%clk 0:15:29]}  Qc2 {[%clk 0:14:18]} 19. Qe3 {[%clk 0:15:29]}  Qa4 {[%clk 0:14:18]} 20. Rfb1 {[%clk 0:15:29]}  Rc4 {[%clk 0:14:18]} 21. Be1 {[%clk 0:12:35]}  Rfc8 {[%clk 0:11:52]} 22. Nc3 {[%clk 0:12:35]}  Qc6 {[%clk 0:11:52]} 23. Nb5 {[%clk 0:12:35]}  Ra8 {[%clk 0:11:52]} 24. a4 {[%clk 0:12:22]}  a6 {[%clk 0:10:47]} 25. Nc3 {[%clk 0:12:22]}  Rc8 {[%clk 0:10:47]} 26. Rb3 {[%clk 0:12:22]}  Qc7 {[%clk 0:10:25]} 27. Ne2 {[%clk 0:10:04]}  Qc6 {[%clk 0:10:25]} 28. Rc3 {[%clk 0:09:34]}  Rxc3 {[%clk 0:08:22]} 29. Qxc3 {[%clk 0:09:34]}  Qxc3 {[%clk 0:08:22]} 30. Bxc3 {[%clk 0:09:34]}  Rc4 {[%clk 0:08:22]} 31. Kf2 {[%clk 0:09:34]}  Kf8 {[%clk 0:08:22]} 32. Ke3 {[%clk 0:09:34]}  Ke8 {[%clk 0:08:22]} 33. Kd3 {[%clk 0:09:34]}  Rc6 {[%clk 0:08:22]} 34. g4 {[%clk 0:09:34]}  Kd8 {[%clk 0:07:43]} 35. h4 {[%clk 0:09:23]}  Ne8 {[%clk 0:07:43]} 36. h5 {[%clk 0:09:23]}  f6 {[%clk 0:07:43]} 37. Bb4 {[%clk 0:09:23]}  e5 {[%clk 0:06:21]} 38. f4 {[%clk 0:08:59]}  Nd6 {[%clk 0:05:15]} 39. fxe5 {[%clk 0:07:18]}  fxe5 {[%clk 0:05:01]} 40. d5 {[%clk 0:01:58]}  Nc5+ {[%clk 0:05:25]} 41. Bxc5 {[%clk 0:01:58]}  Rxc5 {[%clk 0:05:25]} 42. Ng3 {[%clk 0:01:58]}  b5 {[%clk 0:05:25]} 43. axb5 {[%clk 0:01:58]}  axb5 {[%clk 0:05:25]} 44. Nf5 {[%clk 0:01:58]}  Nxf5 {[%clk 0:05:25]} 45. gxf5 {[%clk 0:01:58]}  b4 {[%clk 0:05:25]} 46. Ra8+ {[%clk 0:00:47]}  Ke7 {[%clk 0:02:27]} 47. Ra7+ {[%clk 0:00:47]}  Kf6 {[%clk 0:02:27]} 48. Ra6+ {[%clk 0:00:47]}  Kf7 {[%clk 0:02:27]} 49. Rc6 {[%clk 0:00:47]}  Rb5 {[%clk 0:02:27]} 50. Rc7+ {[%clk 0:00:47]}  Kf6 {[%clk 0:02:27]} 51. Rc6+ {[%clk 0:00:47]}  Kf7 {[%clk 0:02:27]} 52. Rc1 {[%clk 0:00:24]}  b3 {[%clk 0:01:40]} 53. Kc4 {[%clk 0:00:24]}  b2 {[%clk 0:01:40]} 54. Rb1 {[%clk 0:00:24]}  Rb8 {[%clk 0:01:40]} 55. Kc3 {[%clk 0:00:24]}  Rc8+ {[%clk 0:01:40]} 56. Kb3 {[%clk 0:00:24]}  Rb8+ {[%clk 0:01:40]} 57. Ka3 {[%clk 0:00:24]}  Ra8+ {[%clk 0:01:40]} 58. Kb4 {[%clk 0:00:24]}  Rb8+ {[%clk 0:01:40]} 59. Ka3 {[%clk 0:00:24]}  Ra8+ {[%clk 0:01:40]} 60. Kxb2 {[%clk 0:00:24]}  Ra4 {[%clk 0:01:40]} 61. Re1 {[%clk 0:00:24]}  Rd4 {[%clk 0:01:40]} 62. Kc2 {[%clk 0:00:24]}  Kf8 {[%clk 0:01:30]} 63. Re3 {[%clk 0:00:47]}  Kf7 {[%clk 0:01:30]} 64. Kc3 {[%clk 0:00:47]}  Kf8 {[%clk 0:01:30]} 65. d6 {[%clk 0:00:47]}  Rxd6 {[%clk 0:01:30]} 66. Rd3 {[%clk 0:00:47]}  Rc6+ {[%clk 0:01:30]} 67. Kd2 {[%clk 0:00:47]}  Kf7 {[%clk 0:01:30]} 68. Rd5 {[%clk 0:00:47]}  Kf6 {[%clk 0:01:30]} 69. Ra5 {[%clk 0:00:47]}  Rc4 {[%clk 0:01:30]} 70. Ra6+ {[%clk 0:00:47]}  Kf7 {[%clk 0:01:30]} 71. Kd3 {[%clk 0:00:47]}  Rc5 {[%clk 0:00:52]} 72. Re6 {[%clk 0:00:50]}  Kf8 {[%clk 0:00:52]} 73. Rd6 {[%clk 0:00:50]}  Kf7 {[%clk 0:00:52]} 74. Re6 {[%clk 0:00:50]}  Kf8 {[%clk 0:00:52]} 75. f6 {[%clk 0:00:50]}  Kf7 {[%clk 0:00:52]} 76. fxg7 {[%clk 0:00:50]}  Kxg7 {[%clk 0:00:52]} 77. Rg6+ {[%clk 0:00:50]}  Kh7 {[%clk 0:00:52]} 78. Rd6 {[%clk 0:00:50]}  Kg7 {[%clk 0:00:52]} 79. Re6 {[%clk 0:00:50]}  Kh7 {[%clk 0:00:52]} 80. Rg6 {[%clk 0:00:50]}  Rc1 {[%clk 0:00:43]} 81. Re6 {[%clk 0:00:50]}  Rc5 {[%clk 0:00:43]} 82. Re7+ {[%clk 0:00:50]}  Kg8 {[%clk 0:00:43]} 83. Rd7 {[%clk 0:00:50]}  Kf8 {[%clk 0:00:43]} 84. Ra7 {[%clk 0:00:50]}  Kg8 {[%clk 0:00:43]} 85. Rd7 {[%clk 0:00:50]}  Kf8 {[%clk 0:00:43]} 86. Ke2 {[%clk 0:00:50]}  Rc2+ {[%clk 0:00:43]} 87. Kf3 {[%clk 0:00:50]}  Rh2 {[%clk 0:00:43]} 88. Kg4 {[%clk 0:00:50]}  Rf2 {[%clk 0:00:43]} 89. Rd6 {[%clk 0:00:50]}  Rf4+ {[%clk 0:00:43]} 90. Kg3 {[%clk 0:00:50]}  Rxe4 {[%clk 0:00:43]} 1/2-1/2


[Site "http://www.Chess.com"]

[Event "FIDE World Rapid Chess Championship 2021"]
[White "Svane, Rasmus"]
[Black "Bartel, Mateusz"]
[WhiteFideId "4657101"]
[BlackFideId "1112635"]
[WhiteElo "2677"]
[BlackElo "2543"]
[Result "1-0"]
[Round "08"]
[TimeControl "900+10"]
[Date "2021.12.27"]
[WhiteClock "0:00:51"]
[BlackClock "0:00:50"]

1. Nf3 {[%clk 0:15:00]}  d5 {[%clk 0:15:00]} 2. g3 {[%clk 0:15:00]}  Nd7 {[%clk 0:14:53]} 3. d4 {[%clk 0:15:25]}  Nb6 {[%clk 0:14:53]} 4. Nc3 {[%clk 0:15:25]}  Nf6 {[%clk 0:14:53]} 5. a4 {[%clk 0:15:25]}  a5 {[%clk 0:14:53]} 6. Bg2 {[%clk 0:15:25]}  Bf5 {[%clk 0:14:53]} 7. Nh4 {[%clk 0:15:25]}  Bg6 {[%clk 0:14:53]} 8. Nxg6 {[%clk 0:15:25]}  hxg6 {[%clk 0:14:53]} 9. e4 {[%clk 0:15:25]}  dxe4 {[%clk 0:14:53]} 10. Nxe4 {[%clk 0:15:25]}  Nxe4 {[%clk 0:14:53]} 11. Bxe4 {[%clk 0:15:25]}  c6 {[%clk 0:14:53]} 12. c3 {[%clk 0:15:25]}  e6 {[%clk 0:14:53]} 13. h4 {[%clk 0:15:25]}  Nd5 {[%clk 0:14:53]} 14. Kf1 {[%clk 0:13:55]}  Bd6 {[%clk 0:14:09]} 15. Kg2 {[%clk 0:13:55]}  Qc7 {[%clk 0:14:09]} 16. Bg5 {[%clk 0:13:19]}  Be7 {[%clk 0:12:46]} 17. Bxd5 {[%clk 0:13:19]}  cxd5 {[%clk 0:12:46]} 18. Bxe7 {[%clk 0:11:44]}  Qxe7 {[%clk 0:12:01]} 19. Ra3 {[%clk 0:09:44]}  O-O {[%clk 0:11:14]} 20. Rb3 {[%clk 0:09:17]}  Rfc8 {[%clk 0:10:03]} 21. Rb5 {[%clk 0:09:17]}  Rc7 {[%clk 0:10:03]} 22. Qd3 {[%clk 0:09:17]}  Qf6 {[%clk 0:08:49]} 23. Ra1 {[%clk 0:07:09]}  Qf5 {[%clk 0:08:49]} 24. Qe2 {[%clk 0:07:09]}  g5 {[%clk 0:06:52]} 25. hxg5 {[%clk 0:06:41]}  Qxg5 {[%clk 0:06:52]} 26. Ra3 {[%clk 0:06:41]}  Qe7 {[%clk 0:06:52]} 27. Rab3 {[%clk 0:06:41]}  Qd7 {[%clk 0:06:52]} 28. Qe5 {[%clk 0:06:41]}  f6 {[%clk 0:06:27]} 29. Qh5 {[%clk 0:05:42]}  Ra6 {[%clk 0:06:27]} 30. Qg6 {[%clk 0:04:25]}  Ra7 {[%clk 0:05:17]} 31. Ra3 {[%clk 0:02:57]}  Qf7 {[%clk 0:03:40]} 32. Qd3 {[%clk 0:02:51]}  g5 {[%clk 0:03:40]} 33. Ra1 {[%clk 0:02:51]}  Qh7 {[%clk 0:03:40]} 34. Qe2 {[%clk 0:02:03]}  Ra6 {[%clk 0:02:36]} 35. Rh1 {[%clk 0:02:03]}  Qg6 {[%clk 0:02:30]} 36. Re1 {[%clk 0:02:03]}  Qf7 {[%clk 0:02:38]} 37. Rxb7 {[%clk 0:00:53]}  Rxb7 {[%clk 0:02:38]} 38. Qxa6 {[%clk 0:00:53]}  Rxb2 {[%clk 0:02:38]} 39. Rxe6 {[%clk 0:00:53]}  Kg7 {[%clk 0:02:38]} 40. Qd6 {[%clk 0:00:53]}  Rb7 {[%clk 0:00:50]} 41. Qxd5 {[%clk 0:00:51]}  Rd7 {[%clk 0:00:50]} 42. Qf5 {[%clk 0:00:51]}  Rc7 {[%clk 0:00:50]} 43. Re3 {[%clk 0:00:51]}  Qc4 {[%clk 0:00:50]} 44. Qxa5 {[%clk 0:00:51]}  Rb7 {[%clk 0:00:50]} 45. Qc5 {[%clk 0:00:51]}  Qxc5 {[%clk 0:00:50]} 46. dxc5 {[%clk 0:00:51]}  Rc7 {[%clk 0:00:50]} 47. c4 {[%clk 0:00:51]}  Rxc5 {[%clk 0:00:50]} 48. Ra3 {[%clk 0:00:51]}  Rxc4 {[%clk 0:00:50]} 49. a5 {[%clk 0:00:51]}  Rc7 {[%clk 0:00:50]} 50. a6 {[%clk 0:00:51]}  Ra7 {[%clk 0:00:50]} 51. Kf3 {[%clk 0:00:51]}  f5 {[%clk 0:00:50]} 52. Ke3 {[%clk 0:00:51]}  Kf6 {[%clk 0:00:50]} 53. Kd4 {[%clk 0:00:51]} 1-0


[Site "http://www.Chess.com"]

[Event "FIDE World Rapid Chess Championship 2021"]
[White "Matlakov, Maxim"]
[Black "Demidov, Mikhail"]
[WhiteFideId "4168003"]
[BlackFideId "4197143"]
[WhiteElo "2652"]
[BlackElo "2544"]
[Result "1-0"]
[Round "08"]
[TimeControl "900+10"]
[Date "2021.12.27"]
[WhiteClock "0:01:14"]
[BlackClock "0:00:25"]

1. d4 {[%clk 0:15:00]}  e6 {[%clk 0:15:00]} 2. Nf3 {[%clk 0:15:00]}  Nf6 {[%clk 0:15:00]} 3. c4 {[%clk 0:15:00]}  Bb4+ {[%clk 0:15:26]} 4. Nbd2 {[%clk 0:15:44]}  O-O {[%clk 0:15:26]} 5. a3 {[%clk 0:15:44]}  Bxd2+ {[%clk 0:15:26]} 6. Qxd2 {[%clk 0:15:44]}  Qe7 {[%clk 0:15:30]} 7. e3 {[%clk 0:14:41]}  d6 {[%clk 0:15:30]} 8. b4 {[%clk 0:14:41]}  a5 {[%clk 0:15:30]} 9. Bb2 {[%clk 0:14:41]}  axb4 {[%clk 0:15:30]} 10. axb4 {[%clk 0:14:41]}  Rxa1+ {[%clk 0:15:30]} 11. Bxa1 {[%clk 0:14:41]}  b6 {[%clk 0:15:30]} 12. Be2 {[%clk 0:14:50]}  Bb7 {[%clk 0:12:42]} 13. O-O {[%clk 0:14:50]}  Nbd7 {[%clk 0:12:42]} 14. Bb2 {[%clk 0:14:50]}  Ra8 {[%clk 0:12:42]} 15. Ra1 {[%clk 0:14:50]}  Qd8 {[%clk 0:12:42]} 16. Qd1 {[%clk 0:14:50]}  Rxa1 {[%clk 0:12:42]} 17. Qxa1 {[%clk 0:14:50]}  Qa8 {[%clk 0:12:42]} 18. Qxa8+ {[%clk 0:14:50]}  Bxa8 {[%clk 0:12:42]} 19. Nd2 {[%clk 0:14:50]}  Kf8 {[%clk 0:12:42]} 20. f3 {[%clk 0:14:50]}  c5 {[%clk 0:13:07]} 21. dxc5 {[%clk 0:14:43]}  bxc5 {[%clk 0:13:07]} 22. b5 {[%clk 0:14:43]}  Nb6 {[%clk 0:11:19]} 23. Kf2 {[%clk 0:13:37]}  Nfd7 {[%clk 0:11:19]} 24. g4 {[%clk 0:13:37]}  f6 {[%clk 0:11:19]} 25. h4 {[%clk 0:13:37]}  h6 {[%clk 0:11:19]} 26. f4 {[%clk 0:13:07]}  Ke7 {[%clk 0:10:12]} 27. Bd3 {[%clk 0:13:07]}  d5 {[%clk 0:10:12]} 28. cxd5 {[%clk 0:11:40]}  exd5 {[%clk 0:10:03]} 29. h5 {[%clk 0:11:40]}  Na4 {[%clk 0:09:36]} 30. Ba1 {[%clk 0:10:30]}  Bb7 {[%clk 0:09:36]} 31. Nf1 {[%clk 0:09:58]}  Bc8 {[%clk 0:06:48]} 32. Ng3 {[%clk 0:07:03]}  Ndb6 {[%clk 0:06:48]} 33. g5 {[%clk 0:07:03]}  Bd7 {[%clk 0:04:00]} 34. Bc2 {[%clk 0:06:34]}  Kf7 {[%clk 0:03:09]} 35. gxh6 {[%clk 0:04:19]}  gxh6 {[%clk 0:03:09]} 36. Kf3 {[%clk 0:04:19]}  Kg7 {[%clk 0:01:07]} 37. Kf2 {[%clk 0:03:55]}  Kf7 {[%clk 0:00:00]} 38. Bf5 {[%clk 0:03:55]}  Kg7 {[%clk 0:00:00]} 39. Bxd7 {[%clk 0:03:55]}  Nxd7 {[%clk 0:00:00]} 40. Nf5+ {[%clk 0:03:55]}  Kh7 {[%clk 0:00:00]} 41. Ke2 {[%clk 0:03:55]}  Nab6 {[%clk 0:00:00]} 42. Bc3 {[%clk 0:03:55]}  Nc8 {[%clk 0:00:00]} 43. Ba5 {[%clk 0:01:38]}  Kh8 {[%clk 0:00:00]} 44. Bc7 {[%clk 0:01:38]}  Kh7 {[%clk 0:00:00]} 45. Kd3 {[%clk 0:01:38]}  Na7 {[%clk 0:00:00]} 46. b6 {[%clk 0:01:38]}  Nb5 {[%clk 0:00:00]} 47. Kc2 {[%clk 0:01:38]}  c4 {[%clk 0:00:00]} 48. Bd8 {[%clk 0:01:38]}  Nc5 {[%clk 0:00:00]} 49. Bxf6 {[%clk 0:01:38]}  Na3+ {[%clk 0:00:00]} 50. Kb2 {[%clk 0:01:38]}  Nb5 {[%clk 0:00:00]} 51. Kc2 {[%clk 0:01:14]}  Na3+ {[%clk 0:00:25]} 52. Kc3 {[%clk 0:01:14]}  Ne4+ {[%clk 0:00:25]} 53. Kb2 {[%clk 0:01:14]}  Nxf6 {[%clk 0:00:25]} 54. Kxa3 {[%clk 0:01:14]}  Nd7 {[%clk 0:00:25]} 55. b7 {[%clk 0:01:14]}  Nb8 {[%clk 0:00:25]} 56. Ne7 {[%clk 0:01:14]}  Kg7 {[%clk 0:00:25]} 57. Nxd5 {[%clk 0:01:14]}  Kf7 {[%clk 0:00:25]} 58. Kb4 {[%clk 0:01:14]}  Ke6 {[%clk 0:00:25]} 59. Kxc4 {[%clk 0:01:14]}  Kf5 {[%clk 0:00:25]} 60. Kc5 {[%clk 0:01:14]}  Kg4 {[%clk 0:00:25]} 61. Kd6 {[%clk 0:01:14]}  Kxh5 {[%clk 0:00:25]} 62. f5 {[%clk 0:01:14]}  Kg5 {[%clk 0:00:25]} 63. f6 {[%clk 0:01:14]}  Kg6 {[%clk 0:00:25]} 64. Ke7 {[%clk 0:01:14]}  Nc6+ {[%clk 0:00:25]} 65. Ke8 {[%clk 0:01:14]} 1-0


[Site "http://www.Chess.com"]

[Event "FIDE World Rapid Chess Championship 2021"]
[White "Sjugirov, Sanan"]
[Black "Sanal, Vahap"]
[WhiteFideId "4189302"]
[BlackFideId "6300545"]
[WhiteElo "2634"]
[BlackElo "2509"]
[Result "0-1"]
[Round "08"]
[TimeControl "900+10"]
[Date "2021.12.27"]
[WhiteClock "0:00:04"]
[BlackClock "0:03:31"]

1. e4 {[%clk 0:15:00]}  e5 {[%clk 0:15:00]} 2. Nf3 {[%clk 0:15:00]}  Nc6 {[%clk 0:15:00]} 3. Bc4 {[%clk 0:15:00]}  Bc5 {[%clk 0:15:00]} 4. d3 {[%clk 0:15:00]}  Nf6 {[%clk 0:15:00]} 5. Nbd2 {[%clk 0:15:46]}  a6 {[%clk 0:15:41]} 6. c3 {[%clk 0:15:28]}  d6 {[%clk 0:14:49]} 7. Bb3 {[%clk 0:15:28]}  Ba7 {[%clk 0:14:49]} 8. h3 {[%clk 0:15:28]}  h6 {[%clk 0:14:49]} 9. Nf1 {[%clk 0:15:28]}  Be6 {[%clk 0:14:49]} 10. Ng3 {[%clk 0:15:28]}  d5 {[%clk 0:14:49]} 11. Qe2 {[%clk 0:14:04]}  O-O {[%clk 0:13:49]} 12. O-O {[%clk 0:14:04]}  Re8 {[%clk 0:13:49]} 13. Rd1 {[%clk 0:14:04]}  Qe7 {[%clk 0:14:03]} 14. Nh4 {[%clk 0:11:09]}  Rad8 {[%clk 0:14:03]} 15. Nhf5 {[%clk 0:11:09]}  Qf8 {[%clk 0:14:03]} 16. Qf3 {[%clk 0:10:14]}  dxe4 {[%clk 0:12:41]} 17. dxe4 {[%clk 0:08:00]}  Rxd1+ {[%clk 0:12:41]} 18. Bxd1 {[%clk 0:08:00]}  Rd8 {[%clk 0:09:57]} 19. Bb3 {[%clk 0:08:10]}  Nh7 {[%clk 0:08:19]} 20. Nh5 {[%clk 0:07:46]}  Bxf5 {[%clk 0:08:19]} 21. Qxf5 {[%clk 0:06:03]}  Na5 {[%clk 0:06:21]} 22. Bc2 {[%clk 0:03:45]}  Nc4 {[%clk 0:06:11]} 23. b3 {[%clk 0:03:45]}  g6 {[%clk 0:06:09]} 24. Nf6+ {[%clk 0:03:45]}  Nxf6 {[%clk 0:05:58]} 25. Qxf6 {[%clk 0:02:42]}  Rd6 {[%clk 0:05:58]} 26. Qh4 {[%clk 0:02:42]}  g5 {[%clk 0:05:58]} 27. Qg3 {[%clk 0:02:31]}  Rf6 {[%clk 0:03:56]} 28. bxc4 {[%clk 0:02:31]}  Bxf2+ {[%clk 0:03:56]} 29. Qxf2 {[%clk 0:02:31]}  Rxf2 {[%clk 0:03:56]} 30. Kxf2 {[%clk 0:02:31]}  Qc5+ {[%clk 0:03:56]} 31. Be3 {[%clk 0:02:31]}  Qa3 {[%clk 0:03:56]} 32. Rd1 {[%clk 0:02:31]}  Qxa2 {[%clk 0:03:45]} 33. Rd2 {[%clk 0:00:26]}  Qxc4 {[%clk 0:03:45]} 34. Bb1 {[%clk 0:00:26]}  Kg7 {[%clk 0:03:45]} 35. Ba2 {[%clk 0:00:26]}  Qxe4 {[%clk 0:03:45]} 36. Bd5 {[%clk 0:00:26]}  Qf5+ {[%clk 0:03:45]} 37. Ke2 {[%clk 0:00:26]}  c6 {[%clk 0:03:45]} 38. Ba2 {[%clk 0:00:26]}  Qe4 {[%clk 0:03:45]} 39. Kf2 {[%clk 0:00:26]}  b5 {[%clk 0:03:31]} 40. g4 {[%clk 0:00:04]}  Qh1 {[%clk 0:03:31]} 41. Kg3 {[%clk 0:00:04]}  c5 {[%clk 0:03:31]} 42. Bd5 {[%clk 0:00:04]}  e4 {[%clk 0:03:31]} 43. Rg2 {[%clk 0:00:04]}  Qe1+ {[%clk 0:03:31]} 44. Bf2 {[%clk 0:00:04]}  Qxc3+ {[%clk 0:03:31]} 0-1


[Site "http://www.Chess.com"]

[Event "FIDE World Rapid Chess Championship 2021"]
[White "Narayanan.S.L, "]
[Black "Vidit, Santosh Gujrathi"]
[WhiteFideId "5058422"]
[BlackFideId "5029465"]
[WhiteElo "2482"]
[BlackElo "2629"]
[Result "1-0"]
[Round "08"]
[TimeControl "900+10"]
[Date "2021.12.27"]
[WhiteClock "0:00:47"]
[BlackClock "0:00:21"]

1. e4 {[%clk 0:15:00]}  e5 {[%clk 0:15:00]} 2. Nf3 {[%clk 0:15:00]}  Nc6 {[%clk 0:15:00]} 3. Bc4 {[%clk 0:15:24]}  Nf6 {[%clk 0:15:40]} 4. d3 {[%clk 0:15:24]}  Bc5 {[%clk 0:15:40]} 5. Nc3 {[%clk 0:15:24]}  h6 {[%clk 0:15:40]} 6. O-O {[%clk 0:15:24]}  O-O {[%clk 0:15:40]} 7. a3 {[%clk 0:15:02]}  a5 {[%clk 0:14:51]} 8. Be3 {[%clk 0:15:02]}  Bxe3 {[%clk 0:14:51]} 9. fxe3 {[%clk 0:15:02]}  d6 {[%clk 0:14:51]} 10. d4 {[%clk 0:15:02]}  Bg4 {[%clk 0:14:51]} 11. Qd3 {[%clk 0:14:05]}  Kh8 {[%clk 0:13:01]} 12. h3 {[%clk 0:14:02]}  Bh5 {[%clk 0:13:01]} 13. Nh4 {[%clk 0:12:21]}  Ng8 {[%clk 0:07:13]} 14. Nf5 {[%clk 0:12:21]}  Bg6 {[%clk 0:05:12]} 15. Rf2 {[%clk 0:11:10]}  Nce7 {[%clk 0:05:12]} 16. Nh4 {[%clk 0:10:14]}  f6 {[%clk 0:04:48]} 17. Nxg6+ {[%clk 0:10:14]}  Nxg6 {[%clk 0:04:48]} 18. Ne2 {[%clk 0:10:14]}  N8e7 {[%clk 0:05:04]} 19. Ng3 {[%clk 0:07:30]}  c6 {[%clk 0:05:04]} 20. Raf1 {[%clk 0:07:30]}  Qb6 {[%clk 0:03:33]} 21. c3 {[%clk 0:05:45]}  Rad8 {[%clk 0:03:33]} 22. Qe2 {[%clk 0:05:45]}  exd4 {[%clk 0:03:19]} 23. exd4 {[%clk 0:05:15]}  c5 {[%clk 0:03:19]} 24. Qe3 {[%clk 0:05:15]}  cxd4 {[%clk 0:03:19]} 25. cxd4 {[%clk 0:05:15]}  Ne5 {[%clk 0:03:19]} 26. Ba2 {[%clk 0:04:53]}  Kh7 {[%clk 0:00:55]} 27. Nh5 {[%clk 0:04:53]}  N5c6 {[%clk 0:00:55]} 28. Rd2 {[%clk 0:02:34]}  Ng6 {[%clk 0:00:35]} 29. Be6 {[%clk 0:02:34]}  Kh8 {[%clk 0:00:35]} 30. Kh1 {[%clk 0:02:34]}  Nce7 {[%clk 0:00:35]} 31. Nxf6 {[%clk 0:01:05]}  Qb5 {[%clk 0:00:14]} 32. Rdf2 {[%clk 0:01:05]}  Qg5 {[%clk 0:00:14]} 33. Qxg5 {[%clk 0:01:05]}  hxg5 {[%clk 0:00:14]} 34. Nd5 {[%clk 0:01:05]}  Rxf2 {[%clk 0:00:14]} 35. Rxf2 {[%clk 0:01:05]}  Nxd5 {[%clk 0:00:14]} 36. Bxd5 {[%clk 0:01:05]}  b6 {[%clk 0:00:14]} 37. Rf5 {[%clk 0:01:05]}  Nf4 {[%clk 0:00:14]} 38. Rxg5 {[%clk 0:01:05]}  Kh7 {[%clk 0:00:14]} 39. Bf7 {[%clk 0:01:05]}  Rf8 {[%clk 0:00:21]} 40. Rf5 {[%clk 0:00:48]}  g5 {[%clk 0:00:21]} 41. Bc4 {[%clk 0:00:48]}  Rc8 {[%clk 0:00:21]} 42. b3 {[%clk 0:00:48]}  a4 {[%clk 0:00:21]} 43. Rxg5 {[%clk 0:00:48]}  axb3 {[%clk 0:00:21]} 44. Bxb3 {[%clk 0:00:48]}  Rc3 {[%clk 0:00:21]} 45. Rb5 {[%clk 0:00:48]}  Rg3 {[%clk 0:00:21]} 46. Rxb6 {[%clk 0:00:48]}  Rxg2 {[%clk 0:00:21]} 47. a4 {[%clk 0:00:48]}  Rg3 {[%clk 0:00:21]} 48. a5 {[%clk 0:00:41]}  Rxh3+ {[%clk 0:00:30]} 49. Kg1 {[%clk 0:00:41]}  Ne2+ {[%clk 0:00:30]} 50. Kg2 {[%clk 0:00:41]}  Nf4+ {[%clk 0:00:30]} 51. Kf2 {[%clk 0:00:41]}  Nd3+ {[%clk 0:00:30]} 52. Kf1 {[%clk 0:00:41]}  Nc1 {[%clk 0:00:30]} 53. Bc4 {[%clk 0:00:41]}  Rc3 {[%clk 0:00:30]} 54. Rb4 {[%clk 0:00:41]}  Ra3 {[%clk 0:00:30]} 55. a6 {[%clk 0:00:41]}  Ra1 {[%clk 0:00:30]} 56. Kg2 {[%clk 0:00:41]}  Kg6 {[%clk 0:00:30]} 57. Rb7 {[%clk 0:00:41]}  Na2 {[%clk 0:00:30]} 58. e5 {[%clk 0:00:41]}  dxe5 {[%clk 0:00:30]} 59. dxe5 {[%clk 0:00:41]}  Nc3 {[%clk 0:00:21]} 60. e6 {[%clk 0:00:47]}  Ne4 {[%clk 0:00:21]} 61. e7 {[%clk 0:00:47]}  Nf6 {[%clk 0:00:21]} 62. Rb6 {[%clk 0:00:47]}  Re1 {[%clk 0:00:21]} 63. a7 {[%clk 0:00:47]} 1-0


[Site "http://www.Chess.com"]

[Event "FIDE World Rapid Chess Championship 2021"]
[White "Howell, David W L"]
[Black "Fridman, Daniel"]
[WhiteFideId "410608"]
[BlackFideId "11600454"]
[WhiteElo "2624"]
[BlackElo "2542"]
[Result "1/2-1/2"]
[Round "08"]
[TimeControl "900+10"]
[Date "2021.12.27"]
[WhiteClock "0:00:44"]
[BlackClock "0:09:01"]

1. Nf3 {[%clk 0:15:00]}  d5 {[%clk 0:15:00]} 2. g3 {[%clk 0:15:00]}  Nf6 {[%clk 0:15:00]} 3. Bg2 {[%clk 0:15:00]}  c5 {[%clk 0:15:00]} 4. O-O {[%clk 0:15:00]}  Nc6 {[%clk 0:16:54]} 5. d4 {[%clk 0:16:15]}  e6 {[%clk 0:16:54]} 6. c4 {[%clk 0:16:15]}  dxc4 {[%clk 0:16:54]} 7. dxc5 {[%clk 0:16:15]}  Qxd1 {[%clk 0:16:54]} 8. Rxd1 {[%clk 0:16:15]}  Bxc5 {[%clk 0:16:54]} 9. Nbd2 {[%clk 0:16:15]}  c3 {[%clk 0:16:54]} 10. bxc3 {[%clk 0:16:15]}  O-O {[%clk 0:16:54]} 11. Nb3 {[%clk 0:16:15]}  Be7 {[%clk 0:16:54]} 12. c4 {[%clk 0:16:15]}  Bd7 {[%clk 0:16:54]} 13. Bb2 {[%clk 0:16:15]}  Rfc8 {[%clk 0:16:54]} 14. Rac1 {[%clk 0:16:15]}  Be8 {[%clk 0:16:54]} 15. Nfd4 {[%clk 0:16:15]}  a5 {[%clk 0:16:54]} 16. Nxc6 {[%clk 0:12:05]}  Bxc6 {[%clk 0:17:08]} 17. Nd4 {[%clk 0:12:05]}  Bxg2 {[%clk 0:17:11]} 18. Kxg2 {[%clk 0:09:13]}  Rd8 {[%clk 0:17:11]} 19. Nb5 {[%clk 0:09:20]}  Rxd1 {[%clk 0:15:18]} 20. Rxd1 {[%clk 0:09:20]}  Rc8 {[%clk 0:15:18]} 21. Ba3 {[%clk 0:09:20]}  Bxa3 {[%clk 0:15:29]} 22. Nxa3 {[%clk 0:03:34]}  Ne4 {[%clk 0:15:29]} 23. Rb1 {[%clk 0:03:42]}  Nd6 {[%clk 0:12:59]} 24. Rd1 {[%clk 0:03:42]}  Ne4 {[%clk 0:12:59]} 25. Kf3 {[%clk 0:03:42]}  Nc5 {[%clk 0:12:59]} 26. Rb1 {[%clk 0:03:13]}  Rc6 {[%clk 0:10:58]} 27. Ke3 {[%clk 0:02:54]}  Kf8 {[%clk 0:10:25]} 28. Nb5 {[%clk 0:02:54]}  Ke7 {[%clk 0:10:25]} 29. Na7 {[%clk 0:00:36]}  Rc7 {[%clk 0:09:01]} 30. Nb5 {[%clk 0:00:36]}  Rc6 {[%clk 0:09:01]} 31. Na7 {[%clk 0:00:36]}  Rc7 {[%clk 0:09:01]} 32. Nb5 {[%clk 0:00:44]} 1/2-1/2


[Site "http://www.Chess.com"]